[Event "Betsys MČR v online bleskovém šachu 2021"]
[Site "Chess.com"]
[Date "2021.04.17"]
[Round "5"]
[White "conysek"]
[Black "chessbeer17"]
[Result "0-1"]
[WhiteElo "2111"]
[BlackElo "2347"]
[TimeControl "180+1"]
[EndTime "9:48:14 PDT"]
[Termination "Uživatel chessbeer17 zvítězil po vzdání soupeře"]

1. e4 {[%clk 0:03:00.9]} 1... c6 {[%clk 0:02:59.9]} 2. Nf3 {[%clk 0:03:01]} 2...
d5 {[%clk 0:03:00.8]} 3. Nc3 {[%clk 0:03:01]} 3... Bg4 {[%clk 0:03:00.1]} 4.
exd5 {[%clk 0:03:00.3]} 4... cxd5 {[%clk 0:02:59.9]} 5. Bb5+ {[%clk 0:02:59]}
5... Nc6 {[%clk 0:02:59.3]} 6. h3 {[%clk 0:02:59.4]} 6... Bxf3 {[%clk
0:02:53.9]} 7. Qxf3 {[%clk 0:03:00.3]} 7... e6 {[%clk 0:02:54]} 8. O-O {[%clk
0:02:59.5]} 8... Nf6 {[%clk 0:02:54.2]} 9. d3 {[%clk 0:02:58.1]} 9... Be7 {[%clk
0:02:54.6]} 10. Re1 {[%clk 0:02:56.4]} 10... O-O {[%clk 0:02:54.6]} 11. Ne2
{[%clk 0:02:48.3]} 11... Rc8 {[%clk 0:02:52.5]} 12. c3 {[%clk 0:02:43.7]} 12...
Qb6 {[%clk 0:02:48.2]} 13. Ba4 {[%clk 0:02:42.4]} 13... Ne5 {[%clk 0:02:41.8]}
14. Qg3 {[%clk 0:02:35.8]} 14... Ng6 {[%clk 0:02:38.3]} 15. d4 {[%clk
0:02:32.2]} 15... Bd6 {[%clk 0:02:35.3]} 16. Qd3 {[%clk 0:02:25.9]} 16... Ne4
{[%clk 0:02:22.7]} 17. Bc2 {[%clk 0:02:22.7]} 17... Qc7 {[%clk 0:02:18.2]} 18.
f3 {[%clk 0:02:16]} 18... Bh2+ {[%clk 0:02:05.3]} 19. Kf1 {[%clk 0:02:15.8]}
19... Ng3+ {[%clk 0:02:05.5]} 20. Nxg3 {[%clk 0:02:16]} 20... Bxg3 {[%clk
0:02:06.4]} 21. Re2 {[%clk 0:02:06.6]} 21... a6 {[%clk 0:01:52.6]} 22. Bd2
{[%clk 0:02:02.1]} 22... Qc4 {[%clk 0:01:46.7]} 23. Qxc4 {[%clk 0:02:01.2]}
23... Rxc4 {[%clk 0:01:46.3]} 24. Bd3 {[%clk 0:01:59.2]} 24... Rc7 {[%clk
0:01:45.3]} 25. a4 {[%clk 0:01:55.8]} 25... Bd6 {[%clk 0:01:37.4]} 26. Rae1
{[%clk 0:01:54.1]} 26... Rfc8 {[%clk 0:01:30.5]} 27. Kf2 {[%clk 0:01:50]} 27...
Kf8 {[%clk 0:01:24.1]} 28. g3 {[%clk 0:01:50.2]} 28... Ne7 {[%clk 0:01:21.9]}
29. h4 {[%clk 0:01:42.4]} 29... h6 {[%clk 0:01:22]} 30. g4 {[%clk 0:01:39.4]}
30... Kg8 {[%clk 0:01:14.6]} 31. Rh1 {[%clk 0:01:32]} 31... Ng6 {[%clk 0:01:07]}
32. Ree1 {[%clk 0:01:29.9]} 32... Nf4 {[%clk 0:01:04.7]} 33. Bb1 {[%clk
0:01:09.6]} 33... Re7 {[%clk 0:01:01]} 34. g5 {[%clk 0:01:03.7]} 34... h5 {[%clk
0:00:57.5]} 35. Bxf4 {[%clk 0:00:49.7]} 35... Bxf4 {[%clk 0:00:57.2]} 36. g6
{[%clk 0:00:49.8]} 36... f6 {[%clk 0:00:54.7]} 37. Re2 {[%clk 0:00:45.9]} 37...
Rce8 {[%clk 0:00:49.9]} 38. Rhe1 {[%clk 0:00:45.8]} 38... Kf8 {[%clk 0:00:45.7]}
39. Ba2 {[%clk 0:00:45.1]} 39... Bd6 {[%clk 0:00:44.6]} 40. Ke3 {[%clk
0:00:38.3]} 40... b5 {[%clk 0:00:39.2]} 41. axb5 {[%clk 0:00:38.2]} 41... axb5
{[%clk 0:00:40.1]} 42. Kd3 {[%clk 0:00:38.1]} 42... Bg3 {[%clk 0:00:34.9]} 43.
Rh1 {[%clk 0:00:35.3]} 43... Rb7 {[%clk 0:00:32.9]} 44. Rg2 {[%clk 0:00:30.2]}
44... Bd6 {[%clk 0:00:29.8]} 45. Re1 {[%clk 0:00:29.8]} 45... b4 {[%clk
0:00:30]} 46. Rge2 {[%clk 0:00:29.4]} 46... Rbe7 {[%clk 0:00:21.6]} 47. Bb3
{[%clk 0:00:21.8]} 47... bxc3 {[%clk 0:00:20.4]} 48. bxc3 {[%clk 0:00:21.5]}
48... Bg3 {[%clk 0:00:21]} 49. Rh1 {[%clk 0:00:19]} 49... Rb7 {[%clk 0:00:20.7]}
50. Bc2 {[%clk 0:00:19.1]} 50... Rc7 {[%clk 0:00:20.6]} 51. Rg2 {[%clk
0:00:18.8]} 51... Rec8 {[%clk 0:00:19.5]} 52. Rxg3 {[%clk 0:00:18.7]} 52...
Rxc3+ {[%clk 0:00:19.1]} 53. Ke2 {[%clk 0:00:16.9]} 53... Rxc2+ {[%clk 0:00:20]}
54. Ke3 {[%clk 0:00:17.5]} 54... R8c3+ {[%clk 0:00:19.2]} 55. Kf4 {[%clk
0:00:17.5]} 55... Rd2 {[%clk 0:00:19.5]} 56. Rgg1 {[%clk 0:00:15.5]} 56... Rxd4+
{[%clk 0:00:18.4]} 57. Kg3 {[%clk 0:00:16.2]} 57... Rdd3 {[%clk 0:00:18.9]} 58.
Rf1 {[%clk 0:00:16.3]} 58... e5 {[%clk 0:00:19.4]} 59. Rf2 {[%clk 0:00:16.8]}
59... e4 {[%clk 0:00:19.3]} 60. Rhf1 {[%clk 0:00:16.4]} 60... Ke7 {[%clk
0:00:19.9]} 61. Kf4 {[%clk 0:00:16]} 61... Rxf3+ {[%clk 0:00:19.7]} 62. Rxf3
{[%clk 0:00:16.1]} 62... Rxf3+ {[%clk 0:00:20.6]} 63. Rxf3 {[%clk 0:00:16.8]}
63... exf3 {[%clk 0:00:21.5]} 0-1

[Event "Betsys MČR v online bleskovém šachu 2021"]
[Site "Chess.com"]
[Date "2021.04.17"]
[Round "5"]
[White "berny643"]
[Black "PetrVelicka"]
[Result "1-0"]
[WhiteElo "2570"]
[BlackElo "2382"]
[TimeControl "180+1"]
[EndTime "9:48:15 PDT"]
[Termination "Uživatel berny643 zvítězil po vzdání soupeře"]

1. d4 {[%clk 0:02:54]} 1... d5 {[%clk 0:02:59.9]} 2. Nf3 {[%clk 0:02:53.8]} 2...
Nf6 {[%clk 0:02:58.9]} 3. c4 {[%clk 0:02:53.2]} 3... c6 {[%clk 0:02:59.1]} 4. e3
{[%clk 0:02:53.1]} 4... Bg4 {[%clk 0:02:55.8]} 5. Nbd2 {[%clk 0:02:52.2]} 5...
e6 {[%clk 0:02:54.3]} 6. b3 {[%clk 0:02:52.2]} 6... Nbd7 {[%clk 0:02:51.9]} 7.
Bb2 {[%clk 0:02:51.6]} 7... Be7 {[%clk 0:02:51.9]} 8. Bd3 {[%clk 0:02:45.4]}
8... O-O {[%clk 0:02:51.1]} 9. O-O {[%clk 0:02:45]} 9... a6 {[%clk 0:02:35.2]}
10. Qe2 {[%clk 0:02:44.1]} 10... b5 {[%clk 0:02:34]} 11. Rfc1 {[%clk 0:02:36.4]}
11... Qb6 {[%clk 0:02:30.1]} 12. Rab1 {[%clk 0:02:17.6]} 12... Rfc8 {[%clk
0:02:28]} 13. e4 {[%clk 0:02:16.1]} 13... dxe4 {[%clk 0:02:24.8]} 14. Nxe4
{[%clk 0:02:15.7]} 14... Nxe4 {[%clk 0:02:22.5]} 15. Qxe4 {[%clk 0:02:12.3]}
15... Bf5 {[%clk 0:02:21.4]} 16. Qe3 {[%clk 0:02:11.7]} 16... Bxd3 {[%clk
0:02:20]} 17. Qxd3 {[%clk 0:02:12.6]} 17... Bf6 {[%clk 0:02:18.7]} 18. h4 {[%clk
0:02:02]} 18... h6 {[%clk 0:02:15.2]} 19. Ba3 {[%clk 0:01:48.1]} 19... Rd8
{[%clk 0:02:02.5]} 20. Bd6 {[%clk 0:01:46]} 20... Rac8 {[%clk 0:01:59.4]} 21. c5
{[%clk 0:01:41.5]} 21... Qb7 {[%clk 0:01:59.1]} 22. g4 {[%clk 0:01:40.6]} 22...
Nf8 {[%clk 0:01:51.6]} 23. g5 {[%clk 0:01:33.5]} 23... hxg5 {[%clk 0:01:51.7]}
24. hxg5 {[%clk 0:01:33.6]} 24... Be7 {[%clk 0:01:52.3]} 25. Bxe7 {[%clk
0:01:33.7]} 25... Qxe7 {[%clk 0:01:50.8]} 26. Qe4 {[%clk 0:01:32.4]} 26... Ng6
{[%clk 0:01:47.2]} 27. Kg2 {[%clk 0:01:30]} 27... Qc7 {[%clk 0:01:45.9]} 28. Rh1
{[%clk 0:01:27.9]} 28... Qf4 {[%clk 0:01:45]} 29. Qe3 {[%clk 0:01:04.2]} 29...
Rd5 {[%clk 0:01:28.4]} 30. Rbe1 {[%clk 0:01:01.1]} 30... Rcd8 {[%clk 0:01:25.6]}
31. Rh3 {[%clk 0:00:57.1]} 31... Qf5 {[%clk 0:01:09.4]} 32. Rg3 {[%clk
0:00:53.7]} 32... Nf4+ {[%clk 0:01:06.3]} 33. Kf1 {[%clk 0:00:50.6]} 33... Qd3+
{[%clk 0:01:04]} 34. Kg1 {[%clk 0:00:46.9]} 34... Qxe3 {[%clk 0:00:56.7]} 35.
fxe3 {[%clk 0:00:46.7]} 35... Ng6 {[%clk 0:00:54.7]} 36. Kf2 {[%clk 0:00:46.1]}
36... e5 {[%clk 0:00:51.9]} 37. Rg4 {[%clk 0:00:45.8]} 37... exd4 {[%clk
0:00:49.5]} 38. exd4 {[%clk 0:00:45.8]} 38... Kf8 {[%clk 0:00:46.6]} 39. Rge4
{[%clk 0:00:45.4]} 39... R5d7 {[%clk 0:00:45.3]} 40. Rh1 {[%clk 0:00:43.4]}
40... Re8 {[%clk 0:00:39.7]} 41. Ne5 {[%clk 0:00:41.1]} 41... Rde7 {[%clk
0:00:23.5]} 42. Nxg6+ {[%clk 0:00:34.2]} 42... fxg6 {[%clk 0:00:23.4]} 43. Rh8+
{[%clk 0:00:32.1]} 43... Kf7 {[%clk 0:00:23.4]} 44. Rxe8 {[%clk 0:00:26.6]}
44... Kxe8 {[%clk 0:00:21.8]} 45. Rxe7+ {[%clk 0:00:24.2]} 45... Kxe7 {[%clk
0:00:21.8]} 46. Ke3 {[%clk 0:00:24.2]} 46... b4 {[%clk 0:00:20.5]} 47. d5 {[%clk
0:00:20]} 47... cxd5 {[%clk 0:00:19.6]} 48. Kd4 {[%clk 0:00:20.6]} 48... Ke6
{[%clk 0:00:19.8]} 49. c6 {[%clk 0:00:20.3]} 49... Kd6 {[%clk 0:00:20]} 50. c7
{[%clk 0:00:20.1]} 50... Kxc7 {[%clk 0:00:20.1]} 51. Kxd5 {[%clk 0:00:21]} 51...
Kd7 {[%clk 0:00:20.4]} 52. Kc5 {[%clk 0:00:20.8]} 52... Ke6 {[%clk 0:00:20.9]}
53. Kxb4 {[%clk 0:00:20.9]} 53... Kf5 {[%clk 0:00:21.5]} 54. Ka5 {[%clk
0:00:21.5]} 54... Kxg5 {[%clk 0:00:22.1]} 55. Kxa6 {[%clk 0:00:22.2]} 55... Kh4
{[%clk 0:00:19.8]} 56. b4 {[%clk 0:00:22.8]} 56... g5 {[%clk 0:00:20.2]} 57. b5
{[%clk 0:00:23.7]} 57... g4 {[%clk 0:00:20.9]} 58. b6 {[%clk 0:00:24.6]} 58...
g3 {[%clk 0:00:21.6]} 59. b7 {[%clk 0:00:25.5]} 59... g2 {[%clk 0:00:22.1]} 60.
b8=Q {[%clk 0:00:26.4]} 60... g1=Q {[%clk 0:00:21.5]} 61. Qh8+ {[%clk
0:00:27.3]} 61... Kg3 {[%clk 0:00:19.3]} 62. Qxg7+ {[%clk 0:00:28.2]} 62... Kf2
{[%clk 0:00:18]} 63. Qxg1+ {[%clk 0:00:29.1]} 63... Kxg1 {[%clk 0:00:17.4]} 64.
Kb7 {[%clk 0:00:30]} 64... Kf2 {[%clk 0:00:17.9]} 65. a4 {[%clk 0:00:30.9]}
65... Ke3 {[%clk 0:00:18.5]} 66. a5 {[%clk 0:00:31.8]} 66... Kd4 {[%clk
0:00:19.2]} 67. a6 {[%clk 0:00:32.7]} 67... Kc5 {[%clk 0:00:19.9]} 68. a7 {[%clk
0:00:33.6]} 1-0

[Event "Betsys MČR v online bleskovém šachu 2021"]
[Site "Chess.com"]
[Date "2021.04.17"]
[Round "5"]
[White "Hroch-hroch"]
[Black "DONSANMIGUEL"]
[Result "0-1"]
[WhiteElo "2248"]
[BlackElo "1819"]
[TimeControl "180+1"]
[EndTime "9:48:15 PDT"]
[Termination "Uživatel DONSANMIGUEL zvítězil na čas"]

1. e4 {[%clk 0:03:00.9]} 1... a6 {[%clk 0:02:59.4]} 2. Nf3 {[%clk 0:02:56.8]}
2... b5 {[%clk 0:03:00.3]} 3. d3 {[%clk 0:02:51.9]} 3... Bb7 {[%clk 0:03:01.2]}
4. Be2 {[%clk 0:02:50.5]} 4... e6 {[%clk 0:03:00]} 5. O-O {[%clk 0:02:50]} 5...
c5 {[%clk 0:03:00]} 6. a4 {[%clk 0:02:46.4]} 6... b4 {[%clk 0:02:59]} 7. Nbd2
{[%clk 0:02:45.1]} 7... Nf6 {[%clk 0:02:54.3]} 8. c3 {[%clk 0:02:39]} 8... Nc6
{[%clk 0:02:49.1]} 9. d4 {[%clk 0:02:31.6]} 9... Qc7 {[%clk 0:02:37.6]} 10. Re1
{[%clk 0:02:28.2]} 10... bxc3 {[%clk 0:02:33.1]} 11. bxc3 {[%clk 0:02:26.7]}
11... cxd4 {[%clk 0:02:28]} 12. cxd4 {[%clk 0:02:25.5]} 12... Ng4 {[%clk
0:02:26.5]} 13. e5 {[%clk 0:02:10.2]} 13... Bb4 {[%clk 0:02:22.3]} 14. Rb1
{[%clk 0:02:03.8]} 14... h5 {[%clk 0:02:16.3]} 15. h3 {[%clk 0:01:53.2]} 15...
Nh6 {[%clk 0:02:12.4]} 16. Qc2 {[%clk 0:01:42.8]} 16... Ba5 {[%clk 0:01:33.9]}
17. Ba3 {[%clk 0:01:28.3]} 17... Nf5 {[%clk 0:01:31.8]} 18. Qb2 {[%clk 0:01:17]}
18... Rb8 {[%clk 0:01:24.1]} 19. Bd3 {[%clk 0:01:07.5]} 19... Ba8 {[%clk
0:01:21.1]} 20. Qa1 {[%clk 0:01:03.8]} 20... Rxb1 {[%clk 0:01:08.3]} 21. Qxb1
{[%clk 0:00:33.3]} 21... Ncxd4 {[%clk 0:00:45.4]} 22. Nxd4 {[%clk 0:00:28.2]}
22... Nxd4 {[%clk 0:00:39.9]} 23. Bd6 {[%clk 0:00:25.8]} 23... Qb7 {[%clk
0:00:27.5]} 24. Qxb7 {[%clk 0:00:25.2]} 24... Bxb7 {[%clk 0:00:26.6]} 25. Rb1
{[%clk 0:00:22.1]} 25... Bc8 {[%clk 0:00:17]} 26. Nc4 {[%clk 0:00:21.8]} 26...
Bd8 {[%clk 0:00:15.4]} 27. Rb8 {[%clk 0:00:21.4]} 27... Nc6 {[%clk 0:00:14.2]}
28. Be4 {[%clk 0:00:19.8]} 28... Nxb8 {[%clk 0:00:12.8]} 29. Bxb8 {[%clk
0:00:19.4]} 29... Ke7 {[%clk 0:00:11]} 30. Bd6+ {[%clk 0:00:16.7]} 30... Ke8
{[%clk 0:00:11.1]} 31. Ba3 {[%clk 0:00:16.8]} 31... Be7 {[%clk 0:00:11.2]} 32.
Bb2 {[%clk 0:00:15.9]} 32... Kf8 {[%clk 0:00:07.9]} 33. Nb6 {[%clk 0:00:15]}
33... f5 {[%clk 0:00:06.1]} 34. Bf3 {[%clk 0:00:13.7]} 34... Kf7 {[%clk
0:00:05.4]} 35. Bxh5+ {[%clk 0:00:10.6]} 35... g6 {[%clk 0:00:05.4]} 36. Bf3
{[%clk 0:00:09]} 36... g5 {[%clk 0:00:04.6]} 37. g3 {[%clk 0:00:06.2]} 37... Kg7
{[%clk 0:00:04.7]} 38. Kg2 {[%clk 0:00:05.2]} 38... Kg6 {[%clk 0:00:05]} 39. h4
{[%clk 0:00:05.2]} 39... gxh4 {[%clk 0:00:04.6]} 40. gxh4 {[%clk 0:00:05.1]}
40... Rg8 {[%clk 0:00:04.7]} 41. Kf1 {[%clk 0:00:04.3]} 41... Bxh4 {[%clk
0:00:03.6]} 42. Bd4 {[%clk 0:00:03]} 42... Kh6 {[%clk 0:00:02.9]} 43. Be3+
{[%clk 0:00:02.7]} 43... Bg5 {[%clk 0:00:03.7]} 44. Bd4 {[%clk 0:00:02.5]} 44...
f4 {[%clk 0:00:03.6]} 45. Nc4 {[%clk 0:00:02.6]} 45... Be7 {[%clk 0:00:03.2]}
46. Nd2 {[%clk 0:00:01.9]} 46... Rg7 {[%clk 0:00:03]} 47. Ke2 {[%clk 0:00:01.6]}
47... Rg8 {[%clk 0:00:03.9]} 48. Nc4 {[%clk 0:00:01.2]} 48... Rg7 {[%clk
0:00:04.8]} 49. Nb6 {[%clk 0:00:01.2]} 49... Rg8 {[%clk 0:00:05.7]} 0-1

[Event "Betsys MČR v online bleskovém šachu 2021"]
[Site "Chess.com"]
[Date "2021.04.17"]
[Round "5"]
[White "WhiteLittleHorse"]
[Black "TTCZ"]
[Result "1/2-1/2"]
[WhiteElo "968"]
[BlackElo "1472"]
[TimeControl "180+1"]
[EndTime "9:48:16 PDT"]
[Termination "Remíza dohodou"]

1. e4 {[%clk 0:03:00.9]} 1... e6 {[%clk 0:02:58.7]} 2. d4 {[%clk 0:02:58.7]}
2... d5 {[%clk 0:02:59.6]} 3. e5 {[%clk 0:02:56.6]} 3... c5 {[%clk 0:02:58.4]}
4. Be3 {[%clk 0:02:54]} 4... cxd4 {[%clk 0:02:57]} 5. Bxd4 {[%clk 0:02:49.4]}
5... Nc6 {[%clk 0:02:57.9]} 6. Nf3 {[%clk 0:02:43.5]} 6... Nxd4 {[%clk
0:02:56.7]} 7. Nxd4 {[%clk 0:02:41.4]} 7... Bc5 {[%clk 0:02:56.6]} 8. c3 {[%clk
0:02:39.4]} 8... f6 {[%clk 0:02:55.6]} 9. Bb5+ {[%clk 0:02:32.6]} 9... Bd7
{[%clk 0:02:52.8]} 10. Bxd7+ {[%clk 0:02:32.2]} 10... Qxd7 {[%clk 0:02:53.7]}
11. O-O {[%clk 0:02:30.4]} 11... fxe5 {[%clk 0:02:49.8]} 12. Nf3 {[%clk
0:02:26.7]} 12... Bd6 {[%clk 0:02:48]} 13. Re1 {[%clk 0:02:25.1]} 13... e4
{[%clk 0:02:47]} 14. Nd4 {[%clk 0:02:23.3]} 14... Nf6 {[%clk 0:02:44.9]} 15. g3
{[%clk 0:02:22.5]} 15... O-O {[%clk 0:02:42.9]} 16. Qc2 {[%clk 0:02:18.6]} 16...
Ng4 {[%clk 0:02:37]} 17. Rf1 {[%clk 0:02:15.9]} 17... e5 {[%clk 0:02:27.2]} 18.
Nb3 {[%clk 0:02:13]} 18... e3 {[%clk 0:02:09]} 19. f3 {[%clk 0:02:10.4]} 19...
Nh6 {[%clk 0:01:55.4]} 20. Qd3 {[%clk 0:02:06.3]} 20... Nf5 {[%clk 0:01:44.6]}
21. Na3 {[%clk 0:01:54.3]} 21... a6 {[%clk 0:01:29.8]} 22. c4 {[%clk 0:01:49.8]}
22... d4 {[%clk 0:01:28.4]} 23. c5 {[%clk 0:01:43.1]} 23... Bc7 {[%clk
0:01:23.4]} 24. Nc4 {[%clk 0:01:40.5]} 24... Qc6 {[%clk 0:01:20.2]} 25. Nba5
{[%clk 0:01:27]} 25... Bxa5 {[%clk 0:01:13.4]} 26. Nxa5 {[%clk 0:01:26.2]} 26...
Qc7 {[%clk 0:01:09.9]} 27. Nc4 {[%clk 0:01:25.1]} 27... Rac8 {[%clk 0:01:07]}
28. b3 {[%clk 0:01:20.4]} 28... b6 {[%clk 0:01:06.8]} 29. cxb6 {[%clk
0:01:18.4]} 29... Qb7 {[%clk 0:01:05.9]} 30. f4 {[%clk 0:01:08.7]} 30... Nh6
{[%clk 0:00:58.2]} 31. fxe5 {[%clk 0:01:06.6]} 31... Rxf1+ {[%clk 0:00:53.4]}
32. Rxf1 {[%clk 0:01:04.5]} 32... Ng4 {[%clk 0:00:50.7]} 33. Qxd4 {[%clk
0:00:55.6]} 33... e2 {[%clk 0:00:50]} 34. Re1 {[%clk 0:00:47.6]} 34... Qf3
{[%clk 0:00:48.7]} 35. Nd2 {[%clk 0:00:32.4]} 35... Qe3+ {[%clk 0:00:30.7]} 36.
Qxe3 {[%clk 0:00:30.8]} 36... Nxe3 {[%clk 0:00:31.6]} 37. Rxe2 {[%clk
0:00:28.9]} 37... Rc1+ {[%clk 0:00:32.1]} 38. Kf2 {[%clk 0:00:26.5]} 38... Ng4+
{[%clk 0:00:31.2]} 39. Kf3 {[%clk 0:00:24]} 39... h5 {[%clk 0:00:24]} 40. e6
{[%clk 0:00:21.9]} 40... Rc8 {[%clk 0:00:21]} 41. Ne4 {[%clk 0:00:16.5]} 41...
Rf8+ {[%clk 0:00:19.8]} 42. Kg2 {[%clk 0:00:11.9]} 42... Re8 {[%clk 0:00:19]}
43. Ng5 {[%clk 0:00:11.3]} 43... Re7 {[%clk 0:00:17.6]} 44. h3 {[%clk
0:00:10.5]} 44... Nf6 {[%clk 0:00:16.7]} 45. Nf3 {[%clk 0:00:08.7]} 45... g6
{[%clk 0:00:16]} 46. g4 {[%clk 0:00:07.1]} 46... hxg4 {[%clk 0:00:14.4]} 47.
hxg4 {[%clk 0:00:07.3]} 47... Nxg4 {[%clk 0:00:14.3]} 48. Kg3 {[%clk 0:00:07.3]}
48... Nf6 {[%clk 0:00:14.2]} 49. a4 {[%clk 0:00:04.4]} 49... Kg7 {[%clk
0:00:14]} 50. Kf4 {[%clk 0:00:03.5]} 50... a5 {[%clk 0:00:13.9]} 51. Ng5 {[%clk
0:00:02.9]} 51... Nd5+ {[%clk 0:00:13.4]} 52. Kg4 {[%clk 0:00:01.1]} 52... Nf6+
{[%clk 0:00:12.1]} 1/2-1/2

[Event "Betsys MČR v online bleskovém šachu 2021"]
[Site "Chess.com"]
[Date "2021.04.17"]
[Round "5"]
[White "Michal5"]
[Black "Asmodai5"]
[Result "0-1"]
[WhiteElo "1200"]
[BlackElo "1104"]
[TimeControl "180+1"]
[EndTime "9:48:22 PDT"]
[Termination "Uživatel Asmodai5 zvítězil matem"]

1. e4 {[%clk 0:03:00.9]} 1... e5 {[%clk 0:02:57.3]} 2. Nf3 {[%clk 0:02:58.6]}
2... Nc6 {[%clk 0:02:56.7]} 3. Bc4 {[%clk 0:02:58.4]} 3... Bc5 {[%clk
0:02:52.4]} 4. d3 {[%clk 0:02:58]} 4... Nf6 {[%clk 0:02:48.5]} 5. Nc3 {[%clk
0:02:56.3]} 5... O-O {[%clk 0:02:47.8]} 6. O-O {[%clk 0:02:55.2]} 6... d6 {[%clk
0:02:47.6]} 7. Bg5 {[%clk 0:02:55]} 7... Bg4 {[%clk 0:02:46.4]} 8. Nd5 {[%clk
0:02:53.3]} 8... Nd4 {[%clk 0:02:12.7]} 9. Nxf6+ {[%clk 0:02:31.3]} 9... gxf6
{[%clk 0:02:10]} 10. Bh6 {[%clk 0:02:30.8]} 10... Re8 {[%clk 0:02:04]} 11. Re1
{[%clk 0:02:26.2]} 11... Qd7 {[%clk 0:01:59.3]} 12. c3 {[%clk 0:02:15.6]} 12...
Nxf3+ {[%clk 0:01:44]} 13. gxf3 {[%clk 0:02:14.2]} 13... Bh3 {[%clk 0:01:37.8]}
14. Be3 {[%clk 0:01:58.9]} 14... f5 {[%clk 0:01:30.4]} 15. Bxc5 {[%clk 0:01:51]}
15... dxc5 {[%clk 0:01:26.2]} 16. Qd2 {[%clk 0:01:38.5]} 16... fxe4 {[%clk
0:01:20.3]} 17. Qg5+ {[%clk 0:01:34.5]} 17... Kf8 {[%clk 0:01:14.7]} 18. fxe4
{[%clk 0:01:32.7]} 18... Qg4+ {[%clk 0:01:11]} 19. Qxg4 {[%clk 0:01:32.5]} 19...
Bxg4 {[%clk 0:01:10.8]} 20. Kg2 {[%clk 0:01:33.4]} 20... Re6 {[%clk 0:01:06.4]}
21. Bxe6 {[%clk 0:01:32]} 21... Bxe6 {[%clk 0:01:06.1]} 22. Re3 {[%clk 0:01:32]}
22... Rd8 {[%clk 0:01:04]} 23. Rg3 {[%clk 0:01:30.8]} 23... Ke7 {[%clk
0:01:02.3]} 24. Re1 {[%clk 0:01:30.8]} 24... b6 {[%clk 0:01:00.6]} 25. Ree3
{[%clk 0:01:29.3]} 25... c4 {[%clk 0:00:55.5]} 26. a3 {[%clk 0:01:23]} 26...
cxd3 {[%clk 0:00:53.3]} 27. Rxd3 {[%clk 0:01:22.5]} 27... Rd6 {[%clk 0:00:37.1]}
28. Rxd6 {[%clk 0:01:19.5]} 28... cxd6 {[%clk 0:00:35.4]} 29. Kf3 {[%clk
0:01:05.7]} 29... f5 {[%clk 0:00:32.5]} 30. Rg7+ {[%clk 0:00:55.2]} 30... Kf6
{[%clk 0:00:32.2]} 31. Rxh7 {[%clk 0:00:55.1]} 31... fxe4+ {[%clk 0:00:31.4]}
32. Kxe4 {[%clk 0:00:53.6]} 32... Bf5+ {[%clk 0:00:31.1]} 33. Ke3 {[%clk
0:00:51.4]} 33... Bxh7 {[%clk 0:00:30.9]} 34. f3 {[%clk 0:00:50.5]} 34... Kf5
{[%clk 0:00:30.4]} 35. h4 {[%clk 0:00:48.9]} 35... Bg6 {[%clk 0:00:29.4]} 36. b3
{[%clk 0:00:47]} 36... d5 {[%clk 0:00:24.5]} 37. a4 {[%clk 0:00:41.3]} 37... e4
{[%clk 0:00:21.9]} 38. fxe4+ {[%clk 0:00:30.2]} 38... dxe4 {[%clk 0:00:21.8]}
39. b4 {[%clk 0:00:29.1]} 39... Be8 {[%clk 0:00:19]} 40. b5 {[%clk 0:00:27.7]}
40... Bf7 {[%clk 0:00:11.2]} 41. h5 {[%clk 0:00:22.5]} 41... Bxh5 {[%clk
0:00:10.4]} 42. c4 {[%clk 0:00:22.5]} 42... Be8 {[%clk 0:00:07.7]} 43. c5 {[%clk
0:00:19.2]} 43... bxc5 {[%clk 0:00:07.5]} 44. a5 {[%clk 0:00:14.3]} 44... Bxb5
{[%clk 0:00:06.7]} 45. a6 {[%clk 0:00:12.7]} 45... c4 {[%clk 0:00:06.7]} 46. Ke2
{[%clk 0:00:13.6]} 46... c3+ {[%clk 0:00:06.5]} 47. Kd1 {[%clk 0:00:14]} 47...
e3 {[%clk 0:00:06.1]} 48. Kc2 {[%clk 0:00:14.4]} 48... e2 {[%clk 0:00:05.6]} 49.
Kxc3 {[%clk 0:00:13.3]} 49... e1=Q+ {[%clk 0:00:05.2]} 50. Kd4 {[%clk
0:00:14.2]} 50... Qd2+ {[%clk 0:00:04.7]} 51. Kc5 {[%clk 0:00:15.1]} 51... Qd3
{[%clk 0:00:04.1]} 52. Kb4 {[%clk 0:00:14.4]} 52... Qc4+ {[%clk 0:00:03.7]} 53.
Ka3 {[%clk 0:00:14.4]} 53... Qc3+ {[%clk 0:00:02.8]} 54. Ka2 {[%clk 0:00:13.8]}
54... Kf4 {[%clk 0:00:02.5]} 55. Kb1 {[%clk 0:00:14.5]} 55... Ke3 {[%clk
0:00:02.1]} 56. Ka2 {[%clk 0:00:15.4]} 56... Qb4 {[%clk 0:00:01.2]} 57. Ka1
{[%clk 0:00:15.3]} 57... Kd2 {[%clk 0:00:01.6]} 58. Ka2 {[%clk 0:00:16.2]} 58...
Kc2 {[%clk 0:00:01.9]} 59. Ka1 {[%clk 0:00:17.1]} 59... Qb2# {[%clk 0:00:02.2]}
0-1